[Event "Titled Tuesday Blitz May 17 Early 2022"]
[White "Zhigalko, Sergei"]
[Black "Eggleston, Thomas A"]
[WhiteFideId "13502956"]
[BlackFideId "412139"]
[WhiteElo "2662"]
[BlackElo "2174"]
[Result "1-0"]
[Round "08"]
[TimeControl "180+1"]
[Date "2022.05.17"]
[WhiteClock "0:00:20"]
[BlackClock "0:00:57"]

1. e4 {[%clk 0:03:00]}  e6 {[%clk 0:03:00]} 2. d4 {[%clk 0:02:59]}  d5 {[%clk 0:03:00]} 3. e5 {[%clk 0:02:59]}  c5 {[%clk 0:03:00]} 4. c3 {[%clk 0:02:59]}  Nc6 {[%clk 0:03:00]} 5. Nf3 {[%clk 0:02:59]}  Qb6 {[%clk 0:03:00]} 6. a3 {[%clk 0:03:00]}  f6 {[%clk 0:03:00]} 7. Bd3 {[%clk 0:02:59]}  fxe5 {[%clk 0:02:58]} 8. dxe5 {[%clk 0:03:00]}  c4 {[%clk 0:02:59]} 9. Bc2 {[%clk 0:03:00]}  Nh6 {[%clk 0:02:58]} 10. O-O {[%clk 0:02:56]}  Nf7 {[%clk 0:02:55]} 11. Qe2 {[%clk 0:02:52]}  Bd7 {[%clk 0:02:53]} 12. Nbd2 {[%clk 0:02:48]}  g5 {[%clk 0:02:42]} 13. h3 {[%clk 0:02:36]}  O-O-O {[%clk 0:02:41]} 14. b3 {[%clk 0:02:27]}  cxb3 {[%clk 0:02:32]} 15. Nxb3 {[%clk 0:02:26]}  Be7 {[%clk 0:02:31]} 16. Rb1 {[%clk 0:01:55]}  Qc7 {[%clk 0:02:29]} 17. Re1 {[%clk 0:01:48]}  Rdg8 {[%clk 0:02:26]} 18. Nbd4 {[%clk 0:01:36]}  h5 {[%clk 0:02:20]} 19. Nb5 {[%clk 0:01:35]}  Qb8 {[%clk 0:02:19]} 20. Nfd4 {[%clk 0:01:33]}  Ncxe5 {[%clk 0:01:54]} 21. f4 {[%clk 0:01:13]}  gxf4 {[%clk 0:01:53]} 22. Bxf4 {[%clk 0:01:13]}  Bf6 {[%clk 0:01:54]} 23. c4 {[%clk 0:01:03]}  a6 {[%clk 0:01:53]} 24. cxd5 {[%clk 0:01:03]}  exd5 {[%clk 0:01:38]} 25. Nc3 {[%clk 0:00:58]}  Bxh3 {[%clk 0:01:32]} 26. Nxd5 {[%clk 0:00:26]}  Nf3+ {[%clk 0:01:18]} 27. Nxf3 {[%clk 0:00:22]}  Qa7+ {[%clk 0:01:09]} 28. Be3 {[%clk 0:00:22]}  b6 {[%clk 0:00:59]} 29. Nxb6+ {[%clk 0:00:20]}  Kd8 {[%clk 0:00:57]} 30. Rbd1+ {[%clk 0:00:20]} 1-0


[Site "https://www.chess.com"]

[Event "Titled Tuesday Blitz May 17 Early 2022"]
[White "Babazada, Khazar"]
[Black "Fiorito, Fabian"]
[WhiteFideId "13413554"]
[BlackFideId "100200"]
[WhiteElo "2406"]
[BlackElo "2395"]
[Result "1-0"]
[Round "09"]
[TimeControl "180+1"]
[Date "2022.05.17"]
[WhiteClock "0:00:04"]
[BlackClock "0:00:01"]

1. e4 {[%clk 0:03:00]}  c6 {[%clk 0:02:59]} 2. d4 {[%clk 0:03:00]}  d5 {[%clk 0:03:00]} 3. Nc3 {[%clk 0:03:00]}  dxe4 {[%clk 0:03:00]} 4. Nxe4 {[%clk 0:03:01]}  Nf6 {[%clk 0:03:00]} 5. Nxf6+ {[%clk 0:03:01]}  exf6 {[%clk 0:03:01]} 6. c3 {[%clk 0:03:02]}  Bd6 {[%clk 0:03:02]} 7. Bd3 {[%clk 0:03:03]}  O-O {[%clk 0:03:02]} 8. Ne2 {[%clk 0:03:04]}  Nd7 {[%clk 0:03:02]} 9. Qc2 {[%clk 0:03:05]}  h5 {[%clk 0:03:00]} 10. O-O {[%clk 0:03:04]}  h4 {[%clk 0:03:00]} 11. Bd2 {[%clk 0:03:02]}  Re8 {[%clk 0:02:59]} 12. h3 {[%clk 0:02:59]}  Nf8 {[%clk 0:02:59]} 13. Rae1 {[%clk 0:02:48]}  Bd7 {[%clk 0:02:59]} 14. Qc1 {[%clk 0:02:42]}  g6 {[%clk 0:02:51]} 15. Bf4 {[%clk 0:02:37]}  Qc7 {[%clk 0:02:51]} 16. Bxd6 {[%clk 0:02:36]}  Qxd6 {[%clk 0:02:51]} 17. Qh6 {[%clk 0:02:36]}  c5 {[%clk 0:02:48]} 18. Qxh4 {[%clk 0:02:25]}  Bc6 {[%clk 0:02:48]} 19. Bc4 {[%clk 0:01:58]}  Re4 {[%clk 0:02:43]} 20. Qg3 {[%clk 0:01:49]}  Qe7 {[%clk 0:02:28]} 21. d5 {[%clk 0:01:13]}  Bxd5 {[%clk 0:01:59]} 22. Bxd5 {[%clk 0:01:11]}  Rxe2 {[%clk 0:01:59]} 23. Rxe2 {[%clk 0:01:11]}  Qxe2 {[%clk 0:02:00]} 24. Qc7 {[%clk 0:01:11]}  Ne6 {[%clk 0:01:55]} 25. Qxb7 {[%clk 0:01:07]}  Rd8 {[%clk 0:01:50]} 26. c4 {[%clk 0:01:05]}  Ng5 {[%clk 0:01:43]} 27. Qxa7 {[%clk 0:01:01]}  Kg7 {[%clk 0:01:20]} 28. Qxc5 {[%clk 0:00:43]}  Rh8 {[%clk 0:01:19]} 29. Qe3 {[%clk 0:00:37]}  Qxb2 {[%clk 0:01:19]} 30. f4 {[%clk 0:00:37]}  Nh7 {[%clk 0:00:51]} 31. c5 {[%clk 0:00:30]}  Rd8 {[%clk 0:00:50]} 32. Bb3 {[%clk 0:00:29]}  Rd2 {[%clk 0:00:50]} 33. Qf3 {[%clk 0:00:23]}  Qd4+ {[%clk 0:00:43]} 34. Kh1 {[%clk 0:00:21]}  Qxc5 {[%clk 0:00:43]} 35. Rd1 {[%clk 0:00:19]}  Rf2 {[%clk 0:00:42]} 36. Qb7 {[%clk 0:00:18]}  Rxf4 {[%clk 0:00:34]} 37. Qxf7+ {[%clk 0:00:15]}  Kh6 {[%clk 0:00:34]} 38. Qd5 {[%clk 0:00:15]}  Qa7 {[%clk 0:00:31]} 39. Qd2 {[%clk 0:00:13]}  g5 {[%clk 0:00:31]} 40. Bc2 {[%clk 0:00:12]}  Nf8 {[%clk 0:00:22]} 41. Qd8 {[%clk 0:00:09]}  Kg7 {[%clk 0:00:17]} 42. Re1 {[%clk 0:00:09]}  Ne6 {[%clk 0:00:12]} 43. Qd3 {[%clk 0:00:06]}  Nf8 {[%clk 0:00:12]} 44. Qd8 {[%clk 0:00:06]}  Ne6 {[%clk 0:00:12]} 45. Qe8 {[%clk 0:00:05]}  Qf2 {[%clk 0:00:06]} 46. Qg6+ {[%clk 0:00:01]}  Kf8 {[%clk 0:00:04]} 47. Rxe6 {[%clk 0:00:02]}  Qf1+ {[%clk 0:00:02]} 48. Kh2 {[%clk 0:00:03]}  Qb5 {[%clk 0:00:02]} 49. Qh6+ {[%clk 0:00:02]}  Kf7 {[%clk 0:00:02]} 50. Re3 {[%clk 0:00:02]}  Rc4 {[%clk 0:00:01]} 51. Qh7+ {[%clk 0:00:02]}  Kf8 {[%clk 0:00:01]} 52. Qh8+ {[%clk 0:00:03]}  Kf7 {[%clk 0:00:02]} 53. Qh7+ {[%clk 0:00:03]}  Kf8 {[%clk 0:00:02]} 54. Bg6 {[%clk 0:00:03]}  Qb8+ {[%clk 0:00:01]} 55. Rg3 {[%clk 0:00:04]} 1-0


[Site "https://www.chess.com"]

[Event "Titled Tuesday Blitz May 17 Early 2022"]
[White "Bortnyk, Olexandr"]
[Black "Kamsky, Gata"]
[WhiteFideId "14120828"]
[BlackFideId "2000024"]
[WhiteElo "2723"]
[BlackElo "2645"]
[Result "1-0"]
[Round "09"]
[TimeControl "180+1"]
[Date "2022.05.17"]
[WhiteClock "0:00:07"]
[BlackClock "0:00:17"]

1. e4 {[%clk 0:02:39]}  e5 {[%clk 0:02:57]} 2. Bc4 {[%clk 0:02:33]}  Nf6 {[%clk 0:02:53]} 3. d3 {[%clk 0:02:32]}  Nc6 {[%clk 0:02:52]} 4. Nc3 {[%clk 0:02:30]}  Bb4 {[%clk 0:02:51]} 5. Bd2 {[%clk 0:02:30]}  Bxc3 {[%clk 0:02:46]} 6. Bxc3 {[%clk 0:02:31]}  d5 {[%clk 0:02:45]} 7. Bb5 {[%clk 0:02:25]}  O-O {[%clk 0:02:42]} 8. Bxc6 {[%clk 0:02:20]}  bxc6 {[%clk 0:02:42]} 9. Qf3 {[%clk 0:02:15]}  Re8 {[%clk 0:02:29]} 10. h3 {[%clk 0:02:12]}  c5 {[%clk 0:02:20]} 11. Ne2 {[%clk 0:02:05]}  c4 {[%clk 0:02:17]} 12. O-O {[%clk 0:02:03]}  cxd3 {[%clk 0:02:15]} 13. cxd3 {[%clk 0:02:04]}  c5 {[%clk 0:02:11]} 14. Ng3 {[%clk 0:02:00]}  a5 {[%clk 0:01:53]} 15. Rfe1 {[%clk 0:01:57]}  d4 {[%clk 0:01:53]} 16. Bd2 {[%clk 0:01:58]}  Qb6 {[%clk 0:01:49]} 17. Bg5 {[%clk 0:01:48]}  Re6 {[%clk 0:01:34]} 18. Nf5 {[%clk 0:01:38]}  Ra7 {[%clk 0:01:15]} 19. Rac1 {[%clk 0:01:01]}  Ne8 {[%clk 0:01:10]} 20. Rc2 {[%clk 0:00:41]}  f6 {[%clk 0:01:09]} 21. Bd2 {[%clk 0:00:38]}  Rc6 {[%clk 0:01:08]} 22. Rec1 {[%clk 0:00:36]}  Be6 {[%clk 0:01:07]} 23. b3 {[%clk 0:00:32]}  Qb5 {[%clk 0:01:06]} 24. Kh2 {[%clk 0:00:19]}  Rcc7 {[%clk 0:00:52]} 25. Qg3 {[%clk 0:00:15]}  a4 {[%clk 0:00:46]} 26. bxa4 {[%clk 0:00:10]}  Rxa4 {[%clk 0:00:41]} 27. f4 {[%clk 0:00:10]}  Bxf5 {[%clk 0:00:40]} 28. exf5 {[%clk 0:00:10]}  Ra3 {[%clk 0:00:32]} 29. fxe5 {[%clk 0:00:11]}  Qxd3 {[%clk 0:00:30]} 30. Qxd3 {[%clk 0:00:09]}  Rxd3 {[%clk 0:00:30]} 31. e6 {[%clk 0:00:10]}  Nd6 {[%clk 0:00:24]} 32. Bf4 {[%clk 0:00:09]}  Rc6 {[%clk 0:00:18]} 33. Bxd6 {[%clk 0:00:06]}  Rxd6 {[%clk 0:00:17]} 34. Rxc5 {[%clk 0:00:07]} 1-0


[Site "https://www.chess.com"]

[Event "Titled Tuesday Blitz May 17 Early 2022"]
[White "Donchenko, Alexander"]
[Black "Zavgorodniy, Sergiy"]
[WhiteFideId "24603295"]
[BlackFideId "14110148"]
[WhiteElo "2572"]
[BlackElo "2420"]
[Result "1-0"]
[Round "09"]
[TimeControl "180+1"]
[Date "2022.05.17"]
[WhiteClock "0:01:50"]
[BlackClock "0:01:28"]

1. d4 {[%clk 0:03:00]}  Nf6 {[%clk 0:02:59]} 2. Nf3 {[%clk 0:03:01]}  e6 {[%clk 0:02:58]} 3. c4 {[%clk 0:03:01]}  Bb4+ {[%clk 0:02:56]} 4. Bd2 {[%clk 0:03:00]}  Qe7 {[%clk 0:02:57]} 5. g3 {[%clk 0:03:00]}  Nc6 {[%clk 0:02:57]} 6. Nc3 {[%clk 0:03:00]}  Bxc3 {[%clk 0:02:56]} 7. Bxc3 {[%clk 0:03:01]}  Ne4 {[%clk 0:02:53]} 8. Rc1 {[%clk 0:03:01]}  O-O {[%clk 0:02:51]} 9. Bg2 {[%clk 0:03:01]}  d6 {[%clk 0:02:51]} 10. O-O {[%clk 0:03:00]}  Nxc3 {[%clk 0:02:51]} 11. Rxc3 {[%clk 0:03:00]}  e5 {[%clk 0:02:52]} 12. Re3 {[%clk 0:02:51]}  Bg4 {[%clk 0:02:44]} 13. h3 {[%clk 0:02:47]}  Bxf3 {[%clk 0:02:43]} 14. Bxf3 {[%clk 0:02:48]}  Qf6 {[%clk 0:02:42]} 15. Bxc6 {[%clk 0:02:45]}  bxc6 {[%clk 0:02:39]} 16. dxe5 {[%clk 0:02:46]}  dxe5 {[%clk 0:02:39]} 17. Qc2 {[%clk 0:02:43]}  Rfd8 {[%clk 0:02:30]} 18. h4 {[%clk 0:02:38]}  Rd4 {[%clk 0:02:28]} 19. Rd1 {[%clk 0:02:36]}  Rad8 {[%clk 0:02:26]} 20. Rxd4 {[%clk 0:02:36]}  exd4 {[%clk 0:02:25]} 21. Ra3 {[%clk 0:02:35]}  g6 {[%clk 0:01:36]} 22. Rxa7 {[%clk 0:02:34]}  d3 {[%clk 0:01:36]} 23. exd3 {[%clk 0:02:32]}  Qf3 {[%clk 0:01:37]} 24. Qc3 {[%clk 0:02:01]}  f5 {[%clk 0:01:28]} 25. Rxc7 {[%clk 0:01:50]} 1-0


[Site "https://www.chess.com"]

[Event "Titled Tuesday Blitz May 17 Early 2022"]
[White "Gallego Alcaraz, Andres Felipe"]
[Black "Jesse, Ingemars"]
[WhiteFideId "4402669"]
[BlackFideId "11602724"]
[WhiteElo "2340"]
[BlackElo "2385"]
[Result "1/2-1/2"]
[Round "09"]
[TimeControl "180+1"]
[Date "2022.05.17"]
[WhiteClock "0:00:09"]
[BlackClock "0:00:12"]

1. d4 {[%clk 0:02:58]}  d5 {[%clk 0:02:57]} 2. c4 {[%clk 0:02:57]}  c6 {[%clk 0:02:57]} 3. Nf3 {[%clk 0:02:58]}  Nf6 {[%clk 0:02:57]} 4. Nc3 {[%clk 0:02:58]}  a6 {[%clk 0:02:57]} 5. Ne5 {[%clk 0:02:58]}  Bf5 {[%clk 0:02:35]} 6. cxd5 {[%clk 0:02:49]}  cxd5 {[%clk 0:02:33]} 7. Qb3 {[%clk 0:02:44]}  Ra7 {[%clk 0:02:30]} 8. a4 {[%clk 0:02:40]}  e6 {[%clk 0:02:23]} 9. Bf4 {[%clk 0:02:39]}  Nbd7 {[%clk 0:02:15]} 10. e3 {[%clk 0:02:39]}  Nxe5 {[%clk 0:02:04]} 11. Bxe5 {[%clk 0:02:40]}  Bd6 {[%clk 0:01:55]} 12. Bxd6 {[%clk 0:02:32]}  Qxd6 {[%clk 0:01:54]} 13. Be2 {[%clk 0:02:31]}  O-O {[%clk 0:01:50]} 14. O-O {[%clk 0:02:31]}  Rc8 {[%clk 0:01:34]} 15. Rfc1 {[%clk 0:02:30]}  Rc7 {[%clk 0:01:08]} 16. a5 {[%clk 0:02:09]}  Ra8 {[%clk 0:01:03]} 17. Na4 {[%clk 0:01:50]}  Nd7 {[%clk 0:00:55]} 18. Nb6 {[%clk 0:01:33]}  Rd8 {[%clk 0:00:37]} 19. Rc3 {[%clk 0:01:33]}  Rxc3 {[%clk 0:00:33]} 20. bxc3 {[%clk 0:01:34]}  h6 {[%clk 0:00:27]} 21. c4 {[%clk 0:01:29]}  Nxb6 {[%clk 0:00:25]} 22. axb6 {[%clk 0:01:28]}  dxc4 {[%clk 0:00:23]} 23. Bxc4 {[%clk 0:01:27]}  Rc8 {[%clk 0:00:21]} 24. d5 {[%clk 0:00:35]}  exd5 {[%clk 0:00:11]} 25. Bxd5 {[%clk 0:00:35]}  Be6 {[%clk 0:00:11]} 26. Bxe6 {[%clk 0:00:34]}  Qxe6 {[%clk 0:00:12]} 27. Qb2 {[%clk 0:00:31]}  Rc6 {[%clk 0:00:12]} 28. Rb1 {[%clk 0:00:31]}  a5 {[%clk 0:00:11]} 29. h3 {[%clk 0:00:31]}  a4 {[%clk 0:00:11]} 30. Qb4 {[%clk 0:00:29]}  a3 {[%clk 0:00:10]} 31. Qxa3 {[%clk 0:00:30]}  Rxb6 {[%clk 0:00:11]} 32. Rd1 {[%clk 0:00:26]}  Rc6 {[%clk 0:00:05]} 33. Rd8+ {[%clk 0:00:22]}  Kh7 {[%clk 0:00:06]} 34. Qd3+ {[%clk 0:00:21]}  Qg6 {[%clk 0:00:05]} 35. Qd7 {[%clk 0:00:18]}  Rc1+ {[%clk 0:00:04]} 36. Kh2 {[%clk 0:00:19]}  Rc2 {[%clk 0:00:03]} 37. Qe8 {[%clk 0:00:14]}  Qf5 {[%clk 0:00:03]} 38. Qh8+ {[%clk 0:00:11]}  Kg6 {[%clk 0:00:04]} 39. Rd6+ {[%clk 0:00:11]}  f6 {[%clk 0:00:02]} 40. Qe8+ {[%clk 0:00:11]}  Kh7 {[%clk 0:00:02]} 41. f4 {[%clk 0:00:02]}  Qg6 {[%clk 0:00:01]} 42. Qxg6+ {[%clk 0:00:02]}  Kxg6 {[%clk 0:00:02]} 43. Rd7 {[%clk 0:00:01]}  Rb2 {[%clk 0:00:03]} 44. e4 {[%clk 0:00:02]}  b5 {[%clk 0:00:03]} 45. Kg3 {[%clk 0:00:02]}  b4 {[%clk 0:00:03]} 46. Kf3 {[%clk 0:00:02]}  b3 {[%clk 0:00:04]} 47. Rb7 {[%clk 0:00:02]}  Rb1 {[%clk 0:00:04]} 48. g4 {[%clk 0:00:02]}  b2 {[%clk 0:00:04]} 49. Kg2 {[%clk 0:00:03]}  Kh7 {[%clk 0:00:04]} 50. e5 {[%clk 0:00:03]}  fxe5 {[%clk 0:00:04]} 51. fxe5 {[%clk 0:00:04]}  Re1 {[%clk 0:00:05]} 52. Rxb2 {[%clk 0:00:03]}  Rxe5 {[%clk 0:00:05]} 53. Rf2 {[%clk 0:00:04]}  Re6 {[%clk 0:00:06]} 54. Rf3 {[%clk 0:00:05]}  Kg6 {[%clk 0:00:06]} 55. Kg3 {[%clk 0:00:05]}  Rf6 {[%clk 0:00:07]} 56. h4 {[%clk 0:00:05]}  Rxf3+ {[%clk 0:00:07]} 57. Kxf3 {[%clk 0:00:06]}  Kf6 {[%clk 0:00:08]} 58. Kf4 {[%clk 0:00:06]}  g5+ {[%clk 0:00:08]} 59. hxg5+ {[%clk 0:00:06]}  hxg5+ {[%clk 0:00:08]} 60. Ke4 {[%clk 0:00:06]}  Ke6 {[%clk 0:00:09]} 61. Kd4 {[%clk 0:00:07]}  Kd6 {[%clk 0:00:10]} 62. Ke4 {[%clk 0:00:07]}  Ke6 {[%clk 0:00:10]} 63. Kd4 {[%clk 0:00:08]}  Kd6 {[%clk 0:00:11]} 64. Ke4 {[%clk 0:00:09]}  Ke6 {[%clk 0:00:12]} 1/2-1/2


[Site "https://www.chess.com"]

[Event "Titled Tuesday Blitz May 17 Early 2022"]
[White "Garriga Cazorla, Pere"]
[Black "Visakh N R"]
[WhiteFideId "32011601"]
[BlackFideId "25012223"]
[WhiteElo "2433"]
[BlackElo "2448"]
[Result "1/2-1/2"]
[Round "09"]
[TimeControl "180+1"]
[Date "2022.05.17"]
[WhiteClock "0:00:22"]
[BlackClock "0:00:18"]

1. Nf3 {[%clk 0:02:57]}  d5 {[%clk 0:02:42]} 2. c4 {[%clk 0:02:56]}  d4 {[%clk 0:02:39]} 3. g3 {[%clk 0:02:55]}  Nc6 {[%clk 0:02:38]} 4. Bg2 {[%clk 0:02:55]}  e5 {[%clk 0:02:38]} 5. O-O {[%clk 0:02:54]}  Bc5 {[%clk 0:02:35]} 6. e3 {[%clk 0:02:50]}  Nge7 {[%clk 0:02:32]} 7. exd4 {[%clk 0:02:47]}  exd4 {[%clk 0:02:33]} 8. d3 {[%clk 0:02:45]}  O-O {[%clk 0:02:33]} 9. Re1 {[%clk 0:02:45]}  Ng6 {[%clk 0:02:31]} 10. a3 {[%clk 0:02:45]}  a5 {[%clk 0:02:31]} 11. Nbd2 {[%clk 0:02:46]}  a4 {[%clk 0:02:27]} 12. h4 {[%clk 0:02:45]}  Re8 {[%clk 0:02:26]} 13. b4 {[%clk 0:02:23]}  axb3 {[%clk 0:02:10]} 14. Nxb3 {[%clk 0:02:22]}  Rxe1+ {[%clk 0:02:10]} 15. Qxe1 {[%clk 0:02:23]}  Bf8 {[%clk 0:02:07]} 16. h5 {[%clk 0:02:22]}  Nge7 {[%clk 0:02:07]} 17. Bf4 {[%clk 0:02:06]}  Bg4 {[%clk 0:02:02]} 18. h6 {[%clk 0:02:03]}  gxh6 {[%clk 0:01:36]} 19. Ne5 {[%clk 0:01:10]}  Nxe5 {[%clk 0:01:34]} 20. Bxe5 {[%clk 0:01:11]}  Nc6 {[%clk 0:01:18]} 21. Bxc6 {[%clk 0:01:11]}  bxc6 {[%clk 0:01:19]} 22. Nxd4 {[%clk 0:01:12]}  Rxa3 {[%clk 0:01:17]} 23. Rxa3 {[%clk 0:01:07]}  Bxa3 {[%clk 0:01:18]} 24. Qe4 {[%clk 0:01:06]}  Qg5 {[%clk 0:01:05]} 25. Nxc6 {[%clk 0:00:48]}  h5 {[%clk 0:00:43]} 26. Bf4 {[%clk 0:00:41]}  Qf5 {[%clk 0:00:37]} 27. Qd4 {[%clk 0:00:17]}  Qd7 {[%clk 0:00:35]} 28. Qf6 {[%clk 0:00:16]}  Qe6 {[%clk 0:00:30]} 29. Qg5+ {[%clk 0:00:15]}  Kf8 {[%clk 0:00:29]} 30. Qd8+ {[%clk 0:00:13]}  Kg7 {[%clk 0:00:27]} 31. Qg5+ {[%clk 0:00:13]}  Kf8 {[%clk 0:00:24]} 32. Ne5 {[%clk 0:00:13]}  Be7 {[%clk 0:00:18]} 33. Qh6+ {[%clk 0:00:10]}  Qxh6 {[%clk 0:00:18]} 34. Bxh6+ {[%clk 0:00:11]}  Ke8 {[%clk 0:00:19]} 35. Nxg4 {[%clk 0:00:11]}  hxg4 {[%clk 0:00:19]} 36. d4 {[%clk 0:00:11]}  Kd7 {[%clk 0:00:19]} 37. Kf1 {[%clk 0:00:11]}  c6 {[%clk 0:00:19]} 38. Ke2 {[%clk 0:00:11]}  Ke6 {[%clk 0:00:20]} 39. Kd3 {[%clk 0:00:11]}  Bb4 {[%clk 0:00:20]} 40. Ke4 {[%clk 0:00:11]}  f5+ {[%clk 0:00:20]} 41. Kd3 {[%clk 0:00:11]}  Be7 {[%clk 0:00:20]} 42. Bf4 {[%clk 0:00:10]}  h5 {[%clk 0:00:20]} 43. Ke3 {[%clk 0:00:08]}  Bf6 {[%clk 0:00:19]} 44. Bc7 {[%clk 0:00:07]}  Bg5+ {[%clk 0:00:19]} 45. Bf4 {[%clk 0:00:08]}  Bd8 {[%clk 0:00:19]} 46. Kd3 {[%clk 0:00:07]}  h4 {[%clk 0:00:17]} 47. gxh4 {[%clk 0:00:07]}  Bxh4 {[%clk 0:00:18]} 48. Ke3 {[%clk 0:00:08]}  Bd8 {[%clk 0:00:17]} 49. f3 {[%clk 0:00:07]}  gxf3 {[%clk 0:00:06]} 50. Kxf3 {[%clk 0:00:08]}  Bf6 {[%clk 0:00:06]} 51. Ke3 {[%clk 0:00:09]}  Kd7 {[%clk 0:00:07]} 52. Kd3 {[%clk 0:00:09]}  Ke6 {[%clk 0:00:07]} 53. Ke3 {[%clk 0:00:09]}  Kd7 {[%clk 0:00:07]} 54. d5 {[%clk 0:00:10]}  cxd5 {[%clk 0:00:07]} 55. cxd5 {[%clk 0:00:10]}  Be7 {[%clk 0:00:08]} 56. Kd4 {[%clk 0:00:11]}  Bd6 {[%clk 0:00:09]} 57. Be5 {[%clk 0:00:11]}  Bxe5+ {[%clk 0:00:08]} 58. Kxe5 {[%clk 0:00:12]}  Ke7 {[%clk 0:00:08]} 59. Kxf5 {[%clk 0:00:12]}  Kd6 {[%clk 0:00:09]} 60. Ke4 {[%clk 0:00:12]}  Kd7 {[%clk 0:00:09]} 61. Ke5 {[%clk 0:00:13]}  Ke7 {[%clk 0:00:10]} 62. Kd4 {[%clk 0:00:12]}  Kd6 {[%clk 0:00:11]} 63. Kc4 {[%clk 0:00:13]}  Kd7 {[%clk 0:00:11]} 64. Kc5 {[%clk 0:00:14]}  Kc7 {[%clk 0:00:12]} 65. d6+ {[%clk 0:00:14]}  Kd7 {[%clk 0:00:12]} 66. Kd5 {[%clk 0:00:15]}  Kd8 {[%clk 0:00:12]} 67. Ke5 {[%clk 0:00:16]}  Kd7 {[%clk 0:00:12]} 68. Kd5 {[%clk 0:00:16]}  Kd8 {[%clk 0:00:13]} 69. Ke6 {[%clk 0:00:17]}  Ke8 {[%clk 0:00:14]} 70. Kf6 {[%clk 0:00:17]}  Kd7 {[%clk 0:00:15]} 71. Ke5 {[%clk 0:00:18]}  Kd8 {[%clk 0:00:15]} 72. Kd4 {[%clk 0:00:19]}  Kd7 {[%clk 0:00:15]} 73. Kc5 {[%clk 0:00:18]}  Kd8 {[%clk 0:00:16]} 74. Kb6 {[%clk 0:00:18]}  Kd7 {[%clk 0:00:17]} 75. Kc5 {[%clk 0:00:19]}  Kd8 {[%clk 0:00:18]} 76. Kc6 {[%clk 0:00:20]}  Kc8 {[%clk 0:00:18]} 77. d7+ {[%clk 0:00:21]}  Kd8 {[%clk 0:00:18]} 78. Kd6 {[%clk 0:00:22]} 1/2-1/2


[Site "https://www.chess.com"]

[Event "Titled Tuesday Blitz May 17 Early 2022"]
[White "Grischuk, Alexander"]
[Black "Vokhidov, Shamsiddin"]
[WhiteFideId "4126025"]
[BlackFideId "14204223"]
[WhiteElo "2762"]
[BlackElo "2611"]
[Result "1/2-1/2"]
[Round "09"]
[TimeControl "180+1"]
[Date "2022.05.17"]
[WhiteClock "0:01:17"]
[BlackClock "0:01:46"]

1. d4 {[%clk 0:03:00]}  Nf6 {[%clk 0:03:00]} 2. Nf3 {[%clk 0:03:00]}  d5 {[%clk 0:02:59]} 3. Bf4 {[%clk 0:02:59]}  c5 {[%clk 0:02:59]} 4. e3 {[%clk 0:03:00]}  Nc6 {[%clk 0:02:59]} 5. Nbd2 {[%clk 0:02:59]}  Nh5 {[%clk 0:02:59]} 6. dxc5 {[%clk 0:02:58]}  Nxf4 {[%clk 0:02:59]} 7. exf4 {[%clk 0:02:59]}  Qa5 {[%clk 0:02:59]} 8. c4 {[%clk 0:02:57]}  e6 {[%clk 0:02:58]} 9. a3 {[%clk 0:02:53]}  Qxc5 {[%clk 0:02:57]} 10. b4 {[%clk 0:02:53]}  Qd6 {[%clk 0:02:58]} 11. g3 {[%clk 0:02:51]}  g6 {[%clk 0:02:58]} 12. Bg2 {[%clk 0:02:31]}  Bg7 {[%clk 0:02:58]} 13. Rb1 {[%clk 0:02:31]}  O-O {[%clk 0:02:56]} 14. O-O {[%clk 0:02:31]}  b6 {[%clk 0:02:56]} 15. cxd5 {[%clk 0:02:22]}  exd5 {[%clk 0:02:55]} 16. Nc4 {[%clk 0:02:22]}  Qd8 {[%clk 0:02:51]} 17. Nce5 {[%clk 0:02:22]}  Bb7 {[%clk 0:02:48]} 18. Nxc6 {[%clk 0:02:17]}  Bxc6 {[%clk 0:02:49]} 19. Ne5 {[%clk 0:02:16]}  Bb7 {[%clk 0:02:48]} 20. Qd4 {[%clk 0:02:15]}  Re8 {[%clk 0:02:42]} 21. Rbd1 {[%clk 0:02:13]}  Qc7 {[%clk 0:02:39]} 22. Bxd5 {[%clk 0:01:58]}  Bxe5 {[%clk 0:02:37]} 23. fxe5 {[%clk 0:01:57]}  Bxd5 {[%clk 0:02:14]} 24. Qxd5 {[%clk 0:01:57]}  Rad8 {[%clk 0:02:12]} 25. Qf3 {[%clk 0:01:57]}  Qxe5 {[%clk 0:02:04]} 26. Rxd8 {[%clk 0:01:40]}  Rxd8 {[%clk 0:02:05]} 27. Qb7 {[%clk 0:01:41]}  Qb8 {[%clk 0:01:48]} 28. Qxb8 {[%clk 0:01:41]}  Rxb8 {[%clk 0:01:49]} 29. Rc1 {[%clk 0:01:36]}  Rb7 {[%clk 0:01:46]} 30. Kg2 {[%clk 0:01:17]} 1/2-1/2


[Site "https://www.chess.com"]

[Event "Titled Tuesday Blitz May 17 Early 2022"]
[White "Guseva, Marina"]
[Black "Izzat, Kanan"]
[WhiteFideId "4149351"]
[BlackFideId "13405209"]
[WhiteElo "2128"]
[BlackElo "2362"]
[Result "0-1"]
[Round "09"]
[TimeControl "180+1"]
[Date "2022.05.17"]
[WhiteClock "0:00:12"]
[BlackClock "0:00:07"]

1. d4 {[%clk 0:03:00]}  Nf6 {[%clk 0:02:59]} 2. Nf3 {[%clk 0:02:59]}  d5 {[%clk 0:03:00]} 3. Bf4 {[%clk 0:02:58]}  e6 {[%clk 0:03:00]} 4. e3 {[%clk 0:02:56]}  Bd6 {[%clk 0:03:00]} 5. Bg3 {[%clk 0:02:55]}  O-O {[%clk 0:03:01]} 6. Nbd2 {[%clk 0:02:53]}  c5 {[%clk 0:03:01]} 7. c3 {[%clk 0:02:53]}  Qc7 {[%clk 0:03:01]} 8. Ne5 {[%clk 0:02:50]}  Nbd7 {[%clk 0:03:02]} 9. f4 {[%clk 0:02:50]}  Ne4 {[%clk 0:03:01]} 10. Nxe4 {[%clk 0:02:36]}  dxe4 {[%clk 0:03:02]} 11. Nc4 {[%clk 0:02:35]}  Be7 {[%clk 0:03:02]} 12. f5 {[%clk 0:02:31]}  Qc6 {[%clk 0:03:03]} 13. fxe6 {[%clk 0:02:29]}  Qxe6 {[%clk 0:03:03]} 14. d5 {[%clk 0:02:26]}  Qg6 {[%clk 0:03:02]} 15. Be2 {[%clk 0:02:14]}  b6 {[%clk 0:03:02]} 16. O-O {[%clk 0:02:10]}  Bb7 {[%clk 0:03:00]} 17. d6 {[%clk 0:02:06]}  Bg5 {[%clk 0:03:00]} 18. Qd2 {[%clk 0:02:03]}  f5 {[%clk 0:02:32]} 19. Rad1 {[%clk 0:01:57]}  Qe6 {[%clk 0:02:25]} 20. b3 {[%clk 0:01:49]}  Kh8 {[%clk 0:02:25]} 21. Bf4 {[%clk 0:01:33]}  Bf6 {[%clk 0:02:23]} 22. h3 {[%clk 0:01:28]}  Rad8 {[%clk 0:02:12]} 23. a4 {[%clk 0:01:26]}  g6 {[%clk 0:01:30]} 24. Kh1 {[%clk 0:01:26]}  Bg7 {[%clk 0:01:30]} 25. g4 {[%clk 0:01:25]}  fxg4 {[%clk 0:01:18]} 26. Bxg4 {[%clk 0:01:24]}  Qe8 {[%clk 0:01:19]} 27. Qh2 {[%clk 0:01:16]}  Nf6 {[%clk 0:01:17]} 28. Be5 {[%clk 0:01:08]}  Nxg4 {[%clk 0:01:10]} 29. hxg4 {[%clk 0:01:07]}  Rf3 {[%clk 0:01:01]} 30. Bxg7+ {[%clk 0:01:00]}  Kxg7 {[%clk 0:01:01]} 31. Ne5 {[%clk 0:00:58]}  Qe6 {[%clk 0:00:55]} 32. Nxf3 {[%clk 0:00:56]}  exf3 {[%clk 0:00:55]} 33. Qg3 {[%clk 0:00:43]}  Rd7 {[%clk 0:00:41]} 34. Kh2 {[%clk 0:00:38]}  Kg8 {[%clk 0:00:31]} 35. c4 {[%clk 0:00:37]}  h5 {[%clk 0:00:24]} 36. g5 {[%clk 0:00:29]}  Qe4 {[%clk 0:00:18]} 37. Rf2 {[%clk 0:00:19]}  Qxe3 {[%clk 0:00:13]} 38. Rdd2 {[%clk 0:00:18]}  Bc6 {[%clk 0:00:13]} 39. Kh3 {[%clk 0:00:16]}  Rf7 {[%clk 0:00:11]} 40. Kh2 {[%clk 0:00:15]}  Bd7 {[%clk 0:00:09]} 41. Rd1 {[%clk 0:00:14]}  Rf4 {[%clk 0:00:06]} 42. Kg1 {[%clk 0:00:13]}  Rg4 {[%clk 0:00:06]} 43. Qxg4 {[%clk 0:00:12]}  hxg4 {[%clk 0:00:07]} 0-1


[Site "https://www.chess.com"]